[Event "Late-Titled-Tuesday-Blitz-April-16-2024"]
[Site "Chess.com"]
[Date "2024.04.16"]
[Round "4"]
[White "GianmarcoVaR"]
[Black "Fandorine"]
[Result "0-1"]
[WhiteElo "2742"]
[BlackElo "2911"]
[TimeControl "180+1"]
[EndTime "14:37:54 PDT"]
[Termination "Fandorine won by resignation"]

1. e4 {[%clk 0:03:00.3]} 1... c5 {[%clk 0:02:57.1]} 2. Nf3 {[%clk 0:03:00.6]}
2... e6 {[%clk 0:02:57]} 3. g3 {[%clk 0:02:59.9]} 3... Nc6 {[%clk 0:02:56.2]} 4.
Bg2 {[%clk 0:03:00.2]} 4... Nf6 {[%clk 0:02:56.9]} 5. Qe2 {[%clk 0:02:59.9]}
5... e5 {[%clk 0:02:57.5]} 6. O-O {[%clk 0:02:58.2]} 6... Be7 {[%clk 0:02:55.5]}
7. d3 {[%clk 0:02:57.9]} 7... d6 {[%clk 0:02:55.3]} 8. Bg5 {[%clk 0:02:55.7]}
8... Nd7 {[%clk 0:02:49.7]} 9. Bxe7 {[%clk 0:02:48.8]} 9... Qxe7 {[%clk
0:02:50.6]} 10. Nc3 {[%clk 0:02:42.5]} 10... Nf6 {[%clk 0:02:49.1]} 11. Nd2
{[%clk 0:02:40]} 11... h5 {[%clk 0:02:42]} 12. h3 {[%clk 0:02:39.9]} 12... h4
{[%clk 0:02:38.5]} 13. g4 {[%clk 0:02:40.1]} 13... Nd4 {[%clk 0:02:38.2]} 14.
Qd1 {[%clk 0:02:39.9]} 14... Ne6 {[%clk 0:02:38.7]} 15. Ne2 {[%clk 0:02:27.6]}
15... g5 {[%clk 0:02:32.2]} 16. c3 {[%clk 0:02:24.5]} 16... Nf4 {[%clk 0:02:29]}
17. Nxf4 {[%clk 0:02:10.8]} 17... gxf4 {[%clk 0:02:28.5]} 18. d4 {[%clk
0:02:06.9]} 18... b6 {[%clk 0:02:21.4]} 19. Bf3 {[%clk 0:02:03.2]} 19... Be6
{[%clk 0:02:16.2]} 20. Kg2 {[%clk 0:02:02.2]} 20... Nh7 {[%clk 0:02:14.2]} 21.
a4 {[%clk 0:01:48.6]} 21... Ng5 {[%clk 0:02:11.7]} 22. a5 {[%clk 0:01:48.4]}
22... O-O {[%clk 0:02:09.8]} 23. Qe2 {[%clk 0:01:36.6]} 23... b5 {[%clk
0:02:03.7]} 24. d5 {[%clk 0:01:28.1]} 24... Bd7 {[%clk 0:02:02.4]} 25. b3 {[%clk
0:01:22]} 25... a6 {[%clk 0:02:01.3]} 26. Kh2 {[%clk 0:01:20]} 26... Qf6 {[%clk
0:01:49.4]} 27. Rg1 {[%clk 0:01:19.5]} 27... Qg6 {[%clk 0:01:46.5]} 28. Rgf1
{[%clk 0:01:19.3]} 28... Kg7 {[%clk 0:01:46.6]} 29. Rg1 {[%clk 0:01:19.7]} 29...
Kf6 {[%clk 0:01:46.5]} 30. Rgf1 {[%clk 0:01:19.5]} 30... Ke7 {[%clk 0:01:47.2]}
31. Rg1 {[%clk 0:01:20]} 31... Rg8 {[%clk 0:01:47.5]} 32. Rac1 {[%clk
0:01:18.2]} 32... Rg7 {[%clk 0:01:47.1]} 33. Rb1 {[%clk 0:01:15]} 33... Rag8
{[%clk 0:01:47.4]} 34. b4 {[%clk 0:01:13.5]} 34... c4 {[%clk 0:01:45.6]} 35. Rg2
{[%clk 0:01:12.1]} 35... f5 {[%clk 0:01:20.7]} 36. Kh1 {[%clk 0:00:28.6]} 36...
Nxf3 {[%clk 0:00:34.3]} 37. Nxf3 {[%clk 0:00:08.6]} 37... fxg4 {[%clk
0:00:34.2]} 38. hxg4 {[%clk 0:00:06.6]} 38... h3 {[%clk 0:00:23.7]} 39. Rgg1
{[%clk 0:00:06]} 39... Bxg4 {[%clk 0:00:24.4]} 40. Kh2 {[%clk 0:00:05.8]} 40...
Bxf3 {[%clk 0:00:07.8]} 41. Qxf3 {[%clk 0:00:02.6]} 41... Qxg1+ {[%clk
0:00:08.5]} 42. Rxg1 {[%clk 0:00:02.6]} 42... Rxg1 {[%clk 0:00:09.4]} 43. Qh5
{[%clk 0:00:02.3]} 43... R8g2+ {[%clk 0:00:08.6]} 0-1

[Event "Late-Titled-Tuesday-Blitz-April-16-2024"]
[Site "Chess.com"]
[Date "2024.04.16"]
[Round "4"]
[White "Binary010"]
[Black "Mackster23"]
[Result "0-1"]
[WhiteElo "2774"]
[BlackElo "2578"]
[TimeControl "180+1"]
[EndTime "14:37:55 PDT"]
[Termination "Mackster23 won on time"]

1. e4 {[%clk 0:03:00.9]} 1... c6 {[%clk 0:02:59.3]} 2. d4 {[%clk 0:03:00.9]}
2... d5 {[%clk 0:02:59.3]} 3. e5 {[%clk 0:03:01.3]} 3... c5 {[%clk 0:02:59.3]}
4. Nf3 {[%clk 0:03:01.3]} 4... cxd4 {[%clk 0:02:58.3]} 5. Qxd4 {[%clk
0:03:02.2]} 5... Nc6 {[%clk 0:02:56.2]} 6. Qf4 {[%clk 0:03:02.5]} 6... g6 {[%clk
0:02:54.2]} 7. Nc3 {[%clk 0:03:02]} 7... Bh6 {[%clk 0:02:48.4]} 8. Qa4 {[%clk
0:02:59.6]} 8... Bg7 {[%clk 0:02:34.2]} 9. Bb5 {[%clk 0:02:50.1]} 9... e6 {[%clk
0:02:18.1]} 10. Bxc6+ {[%clk 0:02:06.3]} 10... bxc6 {[%clk 0:02:18.3]} 11. Qxc6+
{[%clk 0:02:07.2]} 11... Bd7 {[%clk 0:02:18.7]} 12. Qa6 {[%clk 0:02:00.6]} 12...
Ne7 {[%clk 0:02:05.9]} 13. O-O {[%clk 0:02:00.3]} 13... O-O {[%clk 0:02:05.4]}
14. Bg5 {[%clk 0:01:55.5]} 14... h6 {[%clk 0:02:02.5]} 15. Bf4 {[%clk
0:01:36.2]} 15... Nc6 {[%clk 0:01:57.9]} 16. Qe2 {[%clk 0:01:32.7]} 16... Rb8
{[%clk 0:01:53]} 17. b3 {[%clk 0:01:31.2]} 17... g5 {[%clk 0:01:51.1]} 18. Bg3
{[%clk 0:01:28.1]} 18... Qa5 {[%clk 0:01:49]} 19. Na4 {[%clk 0:01:06.4]} 19...
Ne7 {[%clk 0:01:39.1]} 20. Nb2 {[%clk 0:00:53.9]} 20... Qc3 {[%clk 0:01:33.4]}
21. Nd3 {[%clk 0:00:52]} 21... Rfc8 {[%clk 0:01:27.2]} 22. Rac1 {[%clk
0:00:49.5]} 22... Bb5 {[%clk 0:01:23]} 23. h4 {[%clk 0:00:41.3]} 23... g4 {[%clk
0:01:10.3]} 24. Nfe1 {[%clk 0:00:32.6]} 24... h5 {[%clk 0:01:09.4]} 25. Qe3
{[%clk 0:00:27]} 25... Nf5 {[%clk 0:00:32.8]} 26. Qg5 {[%clk 0:00:26.9]} 26...
Qd4 {[%clk 0:00:22.3]} 27. Kh2 {[%clk 0:00:22.7]} 27... Kf8 {[%clk 0:00:21.7]}
28. Qxh5 {[%clk 0:00:22.1]} 28... Bh6 {[%clk 0:00:21.6]} 29. Rd1 {[%clk
0:00:18.1]} 29... Qe4 {[%clk 0:00:15.3]} 30. f3 {[%clk 0:00:11.4]} 30... gxf3
{[%clk 0:00:14.5]} 31. Qxf3 {[%clk 0:00:09.9]} 31... Qxf3 {[%clk 0:00:11.5]} 32.
Rxf3 {[%clk 0:00:10.8]} 32... Ne3 {[%clk 0:00:11.6]} 33. Rd2 {[%clk 0:00:05.5]}
33... Ng4+ {[%clk 0:00:10.5]} 34. Kh3 {[%clk 0:00:05.9]} 34... Bxd2 {[%clk
0:00:10.9]} 35. Kxg4 {[%clk 0:00:06.5]} 35... Bxd3 {[%clk 0:00:09.2]} 36. Nxd3
{[%clk 0:00:07.1]} 36... Rxc2 {[%clk 0:00:08.7]} 37. Rf2 {[%clk 0:00:07.6]}
37... Rbc8 {[%clk 0:00:08.3]} 38. h5 {[%clk 0:00:07.9]} 38... Bh6 {[%clk
0:00:08.1]} 39. Bh4 {[%clk 0:00:01.9]} 39... Rxf2 {[%clk 0:00:07.8]} 40. Nxf2
{[%clk 0:00:02.8]} 40... Rc2 {[%clk 0:00:07.4]} 41. a4 {[%clk 0:00:03.2]} 41...
d4 {[%clk 0:00:06.2]} 42. Ne4 {[%clk 0:00:03.3]} 42... d3 {[%clk 0:00:05.8]} 0-1

[Event "Late-Titled-Tuesday-Blitz-April-16-2024"]
[Site "Chess.com"]
[Date "2024.04.16"]
[Round "4"]
[White "TanitoluwaAps116"]
[Black "Msb2"]
[Result "0-1"]
[WhiteElo "2798"]
[BlackElo "3020"]
[TimeControl "180+1"]
[EndTime "14:37:57 PDT"]
[Termination "Msb2 won by resignation"]

1. e4 {[%clk 0:03:00.9]} 1... e6 {[%clk 0:03:00.1]} 2. d4 {[%clk 0:03:00]} 2...
d5 {[%clk 0:03:00.8]} 3. exd5 {[%clk 0:03:00.7]} 3... exd5 {[%clk 0:03:01.7]} 4.
Nf3 {[%clk 0:03:00.8]} 4... Nc6 {[%clk 0:03:02.3]} 5. Nc3 {[%clk 0:03:00.3]}
5... a6 {[%clk 0:03:00.2]} 6. Bd3 {[%clk 0:02:38.9]} 6... Nb4 {[%clk 0:02:59.1]}
7. O-O {[%clk 0:02:31.5]} 7... Bd6 {[%clk 0:02:58.1]} 8. Re1+ {[%clk 0:02:28.2]}
8... Ne7 {[%clk 0:02:57.2]} 9. Bg5 {[%clk 0:01:50.2]} 9... f6 {[%clk 0:02:52.1]}
10. Bh4 {[%clk 0:01:30.3]} 10... O-O {[%clk 0:02:47.2]} 11. Bf1 {[%clk
0:01:10.2]} 11... Bf5 {[%clk 0:02:33.1]} 12. Rc1 {[%clk 0:01:06.9]} 12... Bf4
{[%clk 0:02:33.2]} 13. Nd2 {[%clk 0:00:59.4]} 13... Nbc6 {[%clk 0:02:28.5]} 14.
Ne2 {[%clk 0:00:49.2]} 14... Bh6 {[%clk 0:02:27.7]} 15. Bg3 {[%clk 0:00:34]}
15... Bg4 {[%clk 0:02:23]} 16. f3 {[%clk 0:00:33]} 16... Bh5 {[%clk 0:02:06.8]}
17. Bf4 {[%clk 0:00:30.9]} 17... Bxf4 {[%clk 0:02:07]} 18. Nxf4 {[%clk
0:00:31.8]} 18... Bf7 {[%clk 0:02:07.9]} 19. c3 {[%clk 0:00:31.8]} 19... Qd6
{[%clk 0:02:07.6]} 20. g3 {[%clk 0:00:29.7]} 20... Rae8 {[%clk 0:02:04.3]} 21.
Nb3 {[%clk 0:00:29.3]} 21... g5 {[%clk 0:01:57.9]} 22. Ng2 {[%clk 0:00:27.1]}
22... a5 {[%clk 0:01:52.1]} 23. Bd3 {[%clk 0:00:26.2]} 23... Bg6 {[%clk
0:01:50.7]} 24. Nc5 {[%clk 0:00:25.3]} 24... b6 {[%clk 0:01:42.7]} 25. Re6
{[%clk 0:00:15.7]} 25... Qd8 {[%clk 0:01:42.4]} 26. Bxg6 {[%clk 0:00:16.2]}
26... hxg6 {[%clk 0:01:42.2]} 27. Nd3 {[%clk 0:00:14.7]} 27... Qd7 {[%clk
0:01:40.9]} 28. Qe2 {[%clk 0:00:10.1]} 28... Nf5 {[%clk 0:01:29.8]} 29. Re1
{[%clk 0:00:09.9]} 29... Nd6 {[%clk 0:00:58]} 30. h4 {[%clk 0:00:04.2]} 30...
Nd8 {[%clk 0:00:58.2]} 31. Rxe8 {[%clk 0:00:04.1]} 31... Rxe8 {[%clk 0:00:59.1]}
32. Qf2 {[%clk 0:00:04.5]} 32... N8f7 {[%clk 0:00:56.8]} 33. hxg5 {[%clk
0:00:04.5]} 33... Nxg5 {[%clk 0:00:57.7]} 34. Kf1 {[%clk 0:00:04.3]} 34... Qb5
{[%clk 0:00:56.1]} 35. Rxe8+ {[%clk 0:00:03.7]} 35... Nxe8 {[%clk 0:00:57]} 36.
Qe2 {[%clk 0:00:03.9]} 36... Nd6 {[%clk 0:00:43.5]} 37. Ngf4 {[%clk 0:00:04.2]}
37... Kf7 {[%clk 0:00:21.7]} 38. Kf2 {[%clk 0:00:04]} 38... Qc6 {[%clk 0:00:17]}
39. g4 {[%clk 0:00:01.9]} 39... Nc4 {[%clk 0:00:15.3]} 40. b3 {[%clk 0:00:01.8]}
40... Nd6 {[%clk 0:00:16]} 41. Qe5 {[%clk 0:00:01.4]} 41... Qxc3 {[%clk
0:00:06.6]} 42. Qxd5+ {[%clk 0:00:01.6]} 42... Kg7 {[%clk 0:00:06.7]} 43. Ne1
{[%clk 0:00:01.1]} 43... Qd2+ {[%clk 0:00:06.5]} 44. Ne2 {[%clk 0:00:02]} 44...
Nh3+ {[%clk 0:00:06.4]} 45. Kf1 {[%clk 0:00:02.4]} 45... Qxe2+ {[%clk 0:00:07]}
46. Kxe2 {[%clk 0:00:02.7]} 46... Nf4+ {[%clk 0:00:07.9]} 47. Ke3 {[%clk
0:00:03.6]} 47... Nxd5+ {[%clk 0:00:08.8]} 0-1

[Event "Late-Titled-Tuesday-Blitz-April-16-2024"]
[Site "Chess.com"]
[Date "2024.04.16"]
[Round "4"]
[White "ural58"]
[Black "Vladimir_2020"]
[Result "0-1"]
[WhiteElo "2506"]
[BlackElo "2758"]
[TimeControl "180+1"]
[EndTime "14:38:00 PDT"]
[Termination "Vladimir_2020 won on time"]

1. e4 {[%clk 0:03:00.9]} 1... e5 {[%clk 0:02:58.9]} 2. Nf3 {[%clk 0:02:55.5]}
2... Nc6 {[%clk 0:02:58.8]} 3. Bc4 {[%clk 0:02:55.5]} 3... Bc5 {[%clk
0:02:57.9]} 4. b4 {[%clk 0:02:54.8]} 4... Bxb4 {[%clk 0:02:56.7]} 5. c3 {[%clk
0:02:55]} 5... Be7 {[%clk 0:02:56.3]} 6. d4 {[%clk 0:02:54.8]} 6... Na5 {[%clk
0:02:53.9]} 7. Be2 {[%clk 0:02:54.6]} 7... d6 {[%clk 0:02:51]} 8. Qa4+ {[%clk
0:02:54]} 8... c6 {[%clk 0:02:50.7]} 9. dxe5 {[%clk 0:02:54.2]} 9... dxe5 {[%clk
0:02:50.1]} 10. Nxe5 {[%clk 0:02:54.6]} 10... Nf6 {[%clk 0:02:49.8]} 11. Bf4
{[%clk 0:02:37.7]} 11... O-O {[%clk 0:02:48]} 12. Nd2 {[%clk 0:02:37.6]} 12...
Be6 {[%clk 0:02:39.4]} 13. O-O {[%clk 0:02:36.4]} 13... b5 {[%clk 0:02:16.2]}
14. Qc2 {[%clk 0:02:35.3]} 14... Qc8 {[%clk 0:02:16.2]} 15. a4 {[%clk
0:02:29.7]} 15... a6 {[%clk 0:02:03.5]} 16. c4 {[%clk 0:02:25.8]} 16... b4
{[%clk 0:02:00.9]} 17. c5 {[%clk 0:02:19]} 17... Nb7 {[%clk 0:01:59.7]} 18. Be3
{[%clk 0:02:12]} 18... Nd7 {[%clk 0:01:50.3]} 19. Nd3 {[%clk 0:02:08.5]} 19...
a5 {[%clk 0:01:46.1]} 20. f4 {[%clk 0:02:07.9]} 20... f6 {[%clk 0:01:45.9]} 21.
Rac1 {[%clk 0:01:48.3]} 21... Qc7 {[%clk 0:01:45.1]} 22. Bf3 {[%clk 0:01:35]}
22... Kh8 {[%clk 0:01:43.8]} 23. Qd1 {[%clk 0:01:30.8]} 23... Rad8 {[%clk
0:01:42.1]} 24. Qe2 {[%clk 0:01:23.1]} 24... Nb8 {[%clk 0:01:19.4]} 25. Nc4
{[%clk 0:01:17.9]} 25... Na6 {[%clk 0:01:11.9]} 26. Ncb2 {[%clk 0:00:47.1]}
26... Rd7 {[%clk 0:01:07.4]} 27. f5 {[%clk 0:00:41.7]} 27... Bf7 {[%clk
0:01:07.1]} 28. e5 {[%clk 0:00:41.9]} 28... fxe5 {[%clk 0:01:05.1]} 29. Bf2
{[%clk 0:00:37.3]} 29... Bf6 {[%clk 0:00:52.6]} 30. Rfe1 {[%clk 0:00:36.4]}
30... Re7 {[%clk 0:00:47.7]} 31. Be4 {[%clk 0:00:33.6]} 31... Nb8 {[%clk
0:00:47.6]} 32. g4 {[%clk 0:00:32.1]} 32... Bg5 {[%clk 0:00:46.4]} 33. Nc4
{[%clk 0:00:28.8]} 33... Bxc1 {[%clk 0:00:45.4]} 34. Rxc1 {[%clk 0:00:28.3]}
34... Nd7 {[%clk 0:00:45.3]} 35. Nb6 {[%clk 0:00:25.2]} 35... Nf6 {[%clk
0:00:41.8]} 36. g5 {[%clk 0:00:20.6]} 36... Nxe4 {[%clk 0:00:41.6]} 37. Qxe4
{[%clk 0:00:21.3]} 37... Bd5 {[%clk 0:00:39.8]} 38. Nxd5 {[%clk 0:00:20.3]}
38... cxd5 {[%clk 0:00:40]} 39. Qxd5 {[%clk 0:00:20.7]} 39... Rxf5 {[%clk
0:00:39.3]} 40. Bg3 {[%clk 0:00:20]} 40... Nd8 {[%clk 0:00:34.4]} 41. c6 {[%clk
0:00:19.1]} 41... Rxg5 {[%clk 0:00:32.4]} 42. Rc5 {[%clk 0:00:17.8]} 42... h5
{[%clk 0:00:31.6]} 43. Rxa5 {[%clk 0:00:17.2]} 43... h4 {[%clk 0:00:30.7]} 44.
Ra8 {[%clk 0:00:15.7]} 44... Re8 {[%clk 0:00:31]} 45. Nxe5 {[%clk 0:00:13.8]}
45... Rexe5 {[%clk 0:00:21.9]} 46. Rxd8+ {[%clk 0:00:11.6]} 46... Kh7 {[%clk
0:00:21.9]} 47. Qg8+ {[%clk 0:00:11.7]} 47... Kg6 {[%clk 0:00:21.8]} 48. Rd7
{[%clk 0:00:07.3]} 48... Rxg3+ {[%clk 0:00:21.8]} 49. hxg3 {[%clk 0:00:06.6]}
49... Re1+ {[%clk 0:00:21.8]} 0-1

[Event "Late-Titled-Tuesday-Blitz-April-16-2024"]
[Site "Chess.com"]
[Date "2024.04.16"]
[Round "4"]
[White "Aygehovit1992"]
[Black "Hrant_ChessMood"]
[Result "0-1"]
[WhiteElo "2783"]
[BlackElo "2983"]
[TimeControl "180+1"]
[EndTime "14:38:05 PDT"]
[Termination "Hrant_ChessMood won by checkmate"]

1. e4 {[%clk 0:02:53.9]} 1... c6 {[%clk 0:02:57.7]} 2. d4 {[%clk 0:02:54.1]}
2... d5 {[%clk 0:02:57.9]} 3. e5 {[%clk 0:02:54.7]} 3... Bf5 {[%clk 0:02:57.4]}
4. Nf3 {[%clk 0:02:55.4]} 4... e6 {[%clk 0:02:57.5]} 5. Nbd2 {[%clk 0:02:55.8]}
5... Nd7 {[%clk 0:02:53.7]} 6. Nb3 {[%clk 0:02:55.7]} 6... a6 {[%clk 0:02:51.6]}
7. Be3 {[%clk 0:02:46.2]} 7... Ne7 {[%clk 0:02:51.1]} 8. a4 {[%clk 0:02:41.5]}
8... Bg4 {[%clk 0:02:46.3]} 9. Be2 {[%clk 0:02:23.2]} 9... Nf5 {[%clk
0:02:46.4]} 10. O-O {[%clk 0:02:21.2]} 10... c5 {[%clk 0:02:35.7]} 11. c3 {[%clk
0:01:52.7]} 11... Be7 {[%clk 0:02:25.1]} 12. a5 {[%clk 0:01:50.4]} 12... O-O
{[%clk 0:02:23.7]} 13. h3 {[%clk 0:01:43.6]} 13... Bxf3 {[%clk 0:02:23.5]} 14.
Bxf3 {[%clk 0:01:44.5]} 14... Rc8 {[%clk 0:02:13.5]} 15. Bf4 {[%clk 0:01:13.8]}
15... cxd4 {[%clk 0:02:08.2]} 16. Nxd4 {[%clk 0:01:14.5]} 16... Nxd4 {[%clk
0:01:47]} 17. cxd4 {[%clk 0:01:15.4]} 17... Nb8 {[%clk 0:01:47.7]} 18. g3 {[%clk
0:00:50.6]} 18... Nc6 {[%clk 0:01:46.9]} 19. Qa4 {[%clk 0:00:50.5]} 19... Bg5
{[%clk 0:01:41.6]} 20. Bxg5 {[%clk 0:00:48.5]} 20... Qxg5 {[%clk 0:01:42.5]} 21.
Kg2 {[%clk 0:00:43.4]} 21... f6 {[%clk 0:01:32.3]} 22. h4 {[%clk 0:00:43.4]}
22... Qf5 {[%clk 0:01:32.6]} 23. exf6 {[%clk 0:00:32.9]} 23... Qxf6 {[%clk
0:01:32.3]} 24. Bg4 {[%clk 0:00:26.2]} 24... Nxd4 {[%clk 0:01:27.8]} 25. Rad1
{[%clk 0:00:17.9]} 25... Rc4 {[%clk 0:01:22.1]} 26. Qd7 {[%clk 0:00:08.5]} 26...
Rc2 {[%clk 0:01:22.3]} 27. Kh3 {[%clk 0:00:05.4]} 27... h6 {[%clk 0:00:56.9]}
28. f4 {[%clk 0:00:05.3]} 28... Rxb2 {[%clk 0:00:50.9]} 29. Rfe1 {[%clk
0:00:05.6]} 29... Rb3 {[%clk 0:00:47.7]} 30. Bxe6+ {[%clk 0:00:05.3]} 30... Kh8
{[%clk 0:00:46.9]} 31. Bxd5 {[%clk 0:00:02.7]} 31... Rc3 {[%clk 0:00:30.5]} 32.
Re8 {[%clk 0:00:02.7]} 32... Nf5 {[%clk 0:00:19.3]} 33. Rxf8+ {[%clk 0:00:02.9]}
33... Qxf8 {[%clk 0:00:20.2]} 34. Kh2 {[%clk 0:00:01.7]} 34... Rc2+ {[%clk
0:00:18.2]} 35. Kh3 {[%clk 0:00:01.5]} 35... Rc3 {[%clk 0:00:18.8]} 36. Kh2
{[%clk 0:00:01.4]} 36... Nxg3 {[%clk 0:00:19.4]} 37. Re1 {[%clk 0:00:01.6]}
37... Ne2 {[%clk 0:00:16.5]} 38. Rxe2 {[%clk 0:00:01.5]} 38... Qxf4+ {[%clk
0:00:16.3]} 39. Kh1 {[%clk 0:00:01.5]} 39... Qf1+ {[%clk 0:00:14.2]} 40. Kh2
{[%clk 0:00:01.3]} 40... Qxe2+ {[%clk 0:00:14.5]} 41. Bg2 {[%clk 0:00:01.9]}
41... Qe5+ {[%clk 0:00:14.6]} 42. Kg1 {[%clk 0:00:02.2]} 42... Rc1+ {[%clk
0:00:14.6]} 43. Kf2 {[%clk 0:00:02.8]} 43... Rc2+ {[%clk 0:00:13.6]} 44. Kg1
{[%clk 0:00:03.2]} 44... Rc1+ {[%clk 0:00:13.3]} 45. Kf2 {[%clk 0:00:03.4]}
45... Qf4+ {[%clk 0:00:13.4]} 46. Ke2 {[%clk 0:00:03.1]} 46... Rc2+ {[%clk
0:00:13]} 47. Kd1 {[%clk 0:00:02.6]} 47... Qc1# {[%clk 0:00:13]} 0-1

[Event "Late-Titled-Tuesday-Blitz-April-16-2024"]
[Site "Chess.com"]
[Date "2024.04.16"]
[Round "4"]
[White "dennisodessa"]
[Black "Lupul_Cenusiu"]
[Result "1-0"]
[WhiteElo "2549"]
[BlackElo "2710"]
[TimeControl "180+1"]
[EndTime "14:38:05 PDT"]
[Termination "dennisodessa won by resignation"]

1. d4 {[%clk 0:02:59.2]} 1... Nf6 {[%clk 0:02:59.8]} 2. c4 {[%clk 0:02:59]} 2...
c5 {[%clk 0:02:59.8]} 3. d5 {[%clk 0:02:58.6]} 3... b5 {[%clk 0:03:00.4]} 4.
cxb5 {[%clk 0:02:59.5]} 4... a6 {[%clk 0:03:00.9]} 5. bxa6 {[%clk 0:03:00.4]}
5... Bxa6 {[%clk 0:03:01.5]} 6. Nc3 {[%clk 0:03:01.3]} 6... d6 {[%clk
0:02:57.6]} 7. Nf3 {[%clk 0:03:01.4]} 7... g6 {[%clk 0:02:56.3]} 8. e4 {[%clk
0:03:01.6]} 8... Bxf1 {[%clk 0:02:57.2]} 9. Kxf1 {[%clk 0:03:02.4]} 9... Qc8
{[%clk 0:02:56.2]} 10. g3 {[%clk 0:02:37.2]} 10... Qh3+ {[%clk 0:02:55.7]} 11.
Kg1 {[%clk 0:02:37.8]} 11... Bg7 {[%clk 0:02:55.6]} 12. Ng5 {[%clk 0:02:35.6]}
12... Qc8 {[%clk 0:02:52]} 13. Kg2 {[%clk 0:02:36]} 13... O-O {[%clk 0:02:51.5]}
14. h4 {[%clk 0:02:28.6]} 14... h6 {[%clk 0:02:49.6]} 15. Nf3 {[%clk 0:02:21.9]}
15... Nbd7 {[%clk 0:02:49.6]} 16. Bf4 {[%clk 0:02:19.8]} 16... Nh5 {[%clk
0:02:43]} 17. Be3 {[%clk 0:02:19.8]} 17... Qa6 {[%clk 0:02:42.2]} 18. Qd2 {[%clk
0:02:19.2]} 18... Kh7 {[%clk 0:02:41.4]} 19. g4 {[%clk 0:01:48.3]} 19... Nhf6
{[%clk 0:02:41.3]} 20. g5 {[%clk 0:01:49]} 20... Nh5 {[%clk 0:02:40.8]} 21. gxh6
{[%clk 0:01:47.5]} 21... Bf6 {[%clk 0:02:25.3]} 22. Ng5+ {[%clk 0:01:47]} 22...
Kh8 {[%clk 0:02:23.2]} 23. f4 {[%clk 0:01:30.8]} 23... Qc4 {[%clk 0:02:15.4]}
24. Kf3 {[%clk 0:01:12.8]} 24... Kg8 {[%clk 0:01:49.5]} 25. Rac1 {[%clk
0:00:58.8]} 25... Qb4 {[%clk 0:01:27.4]} 26. b3 {[%clk 0:00:55.1]} 26... Bd4
{[%clk 0:01:01.2]} 27. Rc2 {[%clk 0:00:41]} 27... Ndf6 {[%clk 0:00:47]} 28. Bxd4
{[%clk 0:00:28.4]} 28... cxd4 {[%clk 0:00:47.9]} 29. Ne2 {[%clk 0:00:28.9]}
29... Qxd2 {[%clk 0:00:36.3]} 30. Rxd2 {[%clk 0:00:29.7]} 30... d3 {[%clk
0:00:37]} 31. Nc1 {[%clk 0:00:27.7]} 31... Nh7 {[%clk 0:00:28.4]} 32. Nxd3
{[%clk 0:00:27.1]} 32... Rfc8 {[%clk 0:00:27.3]} 33. Rc1 {[%clk 0:00:26.9]}
33... Nf8 {[%clk 0:00:24.7]} 34. Rdc2 {[%clk 0:00:25.4]} 34... Rxc2 {[%clk
0:00:23.6]} 35. Rxc2 {[%clk 0:00:26.3]} 35... Nf6 {[%clk 0:00:24.3]} 36. a4
{[%clk 0:00:23.4]} 36... N6d7 {[%clk 0:00:24.8]} 37. Ra2 {[%clk 0:00:22.7]}
37... Nb6 {[%clk 0:00:23.4]} 38. a5 {[%clk 0:00:22.8]} 38... Nfd7 {[%clk
0:00:22.9]} 39. Nb4 {[%clk 0:00:21.9]} 39... Nc8 {[%clk 0:00:20]} 40. Nc6 {[%clk
0:00:22.6]} 40... e5 {[%clk 0:00:16.5]} 41. b4 {[%clk 0:00:20]} 41... exf4
{[%clk 0:00:16.5]} 42. Kxf4 {[%clk 0:00:20.9]} 42... Ne5 {[%clk 0:00:16.5]} 43.
Nxe5 {[%clk 0:00:20.6]} 43... dxe5+ {[%clk 0:00:17.3]} 44. Kxe5 {[%clk
0:00:21.4]} 44... Ra6 {[%clk 0:00:15.9]} 45. b5 {[%clk 0:00:21.2]} 45... f6+
{[%clk 0:00:16.4]} 46. Kd4 {[%clk 0:00:21.7]} 46... Ra8 {[%clk 0:00:15.7]} 47.
Ne6 {[%clk 0:00:22.5]} 47... Kf7 {[%clk 0:00:15.8]} 48. a6 {[%clk 0:00:19.1]}
48... Nd6 {[%clk 0:00:15.6]} 49. b6 {[%clk 0:00:18.1]} 49... Nb5+ {[%clk
0:00:16]} 50. Kc5 {[%clk 0:00:17.9]} 50... Nc3 {[%clk 0:00:15.5]} 51. b7 {[%clk
0:00:15.9]} 51... Nxe4+ {[%clk 0:00:13.2]} 52. Kb6 {[%clk 0:00:15.7]} 1-0